[Event "13th Asrian Memorial 2022"]
[Site "Yerevan"]
[Date "2022.06.11"]
[Round "5.6"]
[White "Mkrtchyan Mariam"]
[Black "Petrosian, Tigran L."]
[Result "0-1"]
[ECO "A40"]
[WhiteElo "2300"]
[BlackElo "2553"]
[Annotator "TA"]
[PlyCount "66"]
[EventDate "2022.06.07"]
[EventType "swiss"]
[EventCountry "ARM"]
[SourceTitle "playchess.com"]
[Source "ChessBase"]
[SourceQuality "1"]
[TimeControl "40/5400+30:1800+30"]

{[%evp 9,66,9,12,2,17,0,0,-8,-8,-12,1,0,1,0,10,-63,-15,-6,13,-18,-6,-33,-17,-69,-83,-86,-71,-137,-109,-96,-68,-75,-74,-90,-50,-116,-147,-165,-147,-175,-168,-165,-161,-277,-280,-279,-287,-301,-301,-426,-406,-416,-408,-707,-705,-675,-650,-1447,-1402]} 1. Nf3 {[%emt 0:00:03]} g6 {[%emt 0:01:41]} 2. d4 {[%emt 0:00:32]} Bg7 {[%emt 0:00:04]} 3. g3 {[%emt 0:01:05]} c5 {[%emt 0:00:12]} 4. c3 {[%emt 0:00:35]} Qa5 {[%emt 0:00:13]} 5. Nbd2 {[%emt 0:05:34]} cxd4 {[%emt 0:00:08]} 6. Nb3 {[%emt 0:01:35] A40: Unusual replies to 1 d4.} Qb6 {[%emt 0:02:28]} 7. cxd4 {[%emt 0:00:11]} Nf6 {[%emt 0:01:46]} 8. Bg2 {[%emt 0:00:32] The position is equal.} O-O {[%emt 0:00:07]} 9. O-O {[%emt 0:01:10]} d6 {[%emt 0:00:53] Prevents Nc5.} 10. d5 {[%emt 0:07:05]} Nbd7 {[%emt 0:02:07]} 11. Nfd4 {[%emt 0:05:35] [#]} Ne5 $146 {[%emt 0:01:50]} ({Predecessor:} 11... Nc5 12. Qc2 Nxb3 13. Nxb3 Bd7 14. Be3 Qa6 15. Bd4 Rfc8 16. Qd2 Rc4 17. Rfc1 Rac8 18. Rxc4 Rxc4 {½-½ (40) Korpa,B (2474)-Pap,G (2527) Budapest 2016}) 12. f4 {[%emt 0:02:44] [#]} (12. a4 $11) 12... Nc4 {[%emt 0:03:20] Black is more active.} (12... Bd7 $1 $15) 13. Qd3 {[%emt 0:03:19]} Qa6 {[%emt 0:23:22]} 14. e4 {[%emt 0:01:55][%cal Oe4e5]} Bd7 {[%emt 0:00:15]} 15. Re1 {[%emt 0:04:02][%cal Oa2a4]} (15. a4 $5) 15... Rac8 {[%emt 0:00:24]} 16. h3 {[%emt 0:01:31]} (16. a4 $11) 16... e5 {[%emt 0:03:27]} 17. dxe6 {[%emt 0:11:16]} fxe6 {[%emt 0:00:27]} 18. e5 {[%emt 0:17:48]} (18. Be3 $142) 18... dxe5 {[%emt 0:00:49]} 19. fxe5 {[%emt 0:00:05]} Nd5 {[%emt 0:05:53]} 20. Bxd5 {[%emt 0:04:09]} exd5 {[%emt 0:00:17]} 21. e6 {[%emt 0:00:03]} Be8 {[%emt 0:01:20]} 22. Bg5 {[%emt 0:04:40] [#]} (22. Re2 $15) 22... Qd6 $1 $17 {[%emt 0:03:02]} 23. e7 {[%emt 0:01:03]} Rf7 {[%emt 0:00:07]} 24. Re6 {[%emt 0:01:00] [#]} Qd7 {[%emt 0:00:23] Threatens to win with ...a5.} (24... Nxb2 $2 25. Rxd6 (25. Qe3 Qb4 $17) 25... Nxd3 26. Rd8 Rxe7 27. Rxc8 $18) 25. Rae1 {[%emt 0:05:55]} a5 {[%emt 0:01:14] Strongly threatening ...a4.} 26. Nf3 {[%emt 0:04:13]} (26. a4 {was necessary.}) 26... Nxb2 $19 {[%emt 0:01:00]} 27. Qe2 {[%emt 0:00:01]} Rc3 {[%emt 0:03:56]} 28. Re3 {[%emt 0:05:44]} Rxe3 {[%emt 0:06:45] Dancing on a razor blade.} 29. Qxe3 {[%emt 0:00:16]} (29. Bxe3 {might work better.} Rxe7 30. Qf1) 29... Nc4 {[%emt 0:00:10]} ({Wrong is} 29... Qxh3 $2 30. Bf4 Bh6 31. Ne5 Bxf4 32. gxf4 Qxe3+ 33. Rxe3 Rxe7 34. Nxa5 $19) 30. Qd3 {[%emt 0:01:38]} h6 {[%emt 0:02:18]} (30... Qxh3 31. Bf4 Bh6 32. Ng5 Bxg5 33. Bxg5 $19) 31. Bxh6 {[%emt 0:04:21]} (31. Bf4 $142 g5 32. Ne5 Qxe7 33. Nf3) 31... Bxh6 {[%emt 0:00:50] Black is clearly winning.} 32. Qxg6+ {[%emt 0:00:00]} Bg7 {[%emt 0:00:13]} 33. Ng5 {[%emt 0:00:05][%csl Gg5][%cal Rg6h7] [#]} Rf1+ $3 {[%emt 0:01:08][%mdl 512] Weighted Error Value: White=0.57/Black=0.06 (flawless)} 0-1

[Event "13th Asrian Memorial 2022"]
[Site "Yerevan"]
[Date "2022.06.11"]
[Round "5.7"]
[White "Shahinyan, David"]
[Black "Hakobyan, Erik"]
[Result "1/2-1/2"]
[ECO "C45"]
[WhiteElo "2479"]
[BlackElo "2108"]
[Annotator "TA"]
[PlyCount "246"]
[EventDate "2022.06.07"]
[EventType "swiss"]
[EventCountry "ARM"]
[SourceTitle "playchess.com"]
[Source "ChessBase"]
[SourceQuality "1"]
[TimeControl "40/5400+30:1800+30"]

{[%evp 11,246,-32,0,0,0,0,0,0,0,0,0,3,7,3,11,0,8,12,25,10,40,33,38,36,36,42,44,29,40,26,25,0,0,0,0,0,0,0,0,0,0,0,0,0,0,6,7,-3,-3,-4,-5,-7,0,-13,-12,-21,0,0,10,10,10,10,10,9,8,9,24,22,22,22,30,18,18,21,39,27,39,39,37,29,101,101,105,93,96,98,99,89,110,99,93,89,87,68,76,77,195,203,196,196,164,102,97,31,34,37,36,55,97,8,8,8,8,8,8,8,8,8,17,23,62,0,70,0,0,0,0,0,0,0,0,0,0,0,0,0,0,0,0,0,0,0,0,0,0,0,0,0,0,0,0,0,0,0,0,0,0,0,0,0,0,0,0,0,0,0,0,0,0,0,0,0,0,0,0,0,0,0,0,0,0,0,0,0,0,0,0,0,0,0,0,0,0,0,0,0,0,0,0,0,0,0,0,0,0,0,0,0,0,0,0,0,0,0,0,0,0,0,0,0,0,0,0,0,0,0,0,0,0,0,0,0,0,0,0,0,0]} 1. e4 {[%emt 0:09:27]} e5 {[%emt 0:00:27]} 2. Nf3 {[%emt 0:00:17]} Nc6 {[%emt 0:00:08]} 3. d4 {[%emt 0:02:52]} exd4 {[%emt 0:00:14]} 4. Nxd4 {[%emt 0:00:06]} Nf6 {[%emt 0:00:18]} 5. Nxc6 {[%emt 0:00:52]} bxc6 {[%emt 0:00:08]} 6. Nd2 {[%emt 0:00:30]} d5 {[%emt 0:03:08]} 7. exd5 {[%emt 0:00:14] C45: Scotch Game.} cxd5 {[%emt 0:00:18]} 8. Bb5+ {[%emt 0:00:08]} Bd7 {[%emt 0:00:17]} 9. Bxd7+ {[%emt 0:00:07]} Qxd7 {[%emt 0:00:05]} 10. O-O {[%emt 0:00:08]} Be7 {[%emt 0:00:18]} 11. b3 {[%emt 0:00:08]} O-O {[%emt 0:01:08]} 12. Bb2 {[%emt 0:00:09]} Rfe8 {[%emt 0:03:12] 12...a5 is more fashionable.} 13. Qf3 {[%emt 0:00:43]} Rad8 {[%emt 0:03:58]} 14. Rad1 {[%emt 0:01:37]} Qg4 {[%emt 0:11:53]} 15. Rfe1 {[%emt 0:07:06] [#]} c6 $146 {[%emt 0:03:12]} ({Predecessor:} 15... Qxf3 16. Nxf3 Ne4 17. c4 Bb4 18. Rf1 dxc4 19. bxc4 Nc3 20. Bxc3 Bxc3 21. Rxd8 Rxd8 {1-0 (51) Lintchevski,D (2559)-Daggupati,B (2331) Chess.com INT 2020}) 16. Re2 {[%emt 0:04:10]} (16. Rxe7 $2 Rxe7 17. Qxg4 (17. Bxf6 $2 Qxf3 18. Nxf3 gxf6 $19) 17... Nxg4 $19) 16... Qxf3 {[%emt 0:16:02]} 17. Nxf3 {[%emt 0:00:12]} Kf8 {[%emt 0:02:52]} 18. Kf1 {[%emt 0:13:48]} c5 {[%emt 0:05:25] Against Nd4} 19. Ne5 {[%emt 0:15:50]} Rc8 {[%emt 0:07:46]} 20. Nd3 {[%emt 0:12:42]} d4 {[%emt 0:06:53]} 21. Ba3 {[%emt 0:02:02][%cal Oe2e7]} Bd6 {[%emt 0:03:08]} 22. Rxe8+ {[%emt 0:03:52]} Kxe8 {[%emt 0:00:17]} 23. Nb2 {[%emt 0:00:04][%cal Bd3b2,Bb2c4,Bc4e5][%mdl 32]} Nd5 {[%emt 0:04:58]} (23... Bxh2 $2 24. g3 $18) 24. Nc4 {[%emt 0:00:11]} Be7 {[%emt 0:01:22]} (24... Bxh2 $2 25. g3 Bxg3 26. fxg3 $18) 25. Re1 {[%emt 0:00:38] [#] Threatens to win with Nd6+.} Kd7 {[%emt 0:02:01] Prevents Nd6.} 26. Ne5+ {[%emt 0:02:19]} Ke8 {[%emt 0:00:39]} 27. Nd3 {[%emt 0:04:41] And now Re5 would win.} Kd7 {[%emt 0:00:25]} 28. Re5 {[%emt 0:05:32]} Kd6 {[%emt 0:00:41]} 29. Rh5 {[%emt 0:03:18]} h6 {[%emt 0:00:29]} 30. Re5 {[%emt 0:02:40]} f6 {[%emt 0:01:12]} 31. Re4 {[%emt 0:02:13] aiming for Rxd4.} Kd7 {[%emt 0:00:28]} 32. Bb2 Bd6 {[%emt 0:01:58]} 33. Ke1 {[%emt 0:02:46]} Nc7 {[%emt 0:06:27]} (33... Bxh2 34. g3 $16) 34. c3 {[%emt 0:01:53]} dxc3 {[%emt 0:02:43]} 35. Bxc3 {[%emt 0:00:05]} Nd5 {[%emt 0:00:09]} 36. Kd2 {[%emt 0:01:08]} Nb6 {[%emt 0:00:31]} ({Don't play} 36... Bxh2 37. g3 $16) 37. Rg4 {[%emt 0:00:49]} Bf8 {[%emt 0:00:21]} 38. Nb2 {[%emt 0:00:21]} Ke6 {[%emt 0:01:41]} 39. Re4+ {[%emt 0:00:32]} Kf7 {[%emt 0:01:24]} 40. Nc4 {[%emt 0:02:52]} Be7 {[%emt 0:05:30]} 41. g4 {[%emt 0:02:06]} g6 {[%emt 0:03:36]} 42. Ne3 {[%emt 0:00:44]} Bd6 {[%emt 0:04:34]} 43. h3 {[%emt 0:01:59]} Rd8 {[%emt 0:04:45]} 44. Kc2 {[%emt 0:01:54]} Bc7 {[%emt 0:00:36]} 45. f4 {[%emt 0:02:59]} Nd5 {[%emt 0:04:45]} (45... h5 $1 $11) 46. Nxd5 $16 {[%emt 0:00:22]} Rxd5 {[%emt 0:00:12][%mdl 4096] Endgame KRB-KRB} 47. Ra4 Bb8 {[%emt 0:03:11]} 48. Ra6 {[%emt 0:01:00]} f5 {[%emt 0:02:37]} 49. Rf6+ {[%emt 0:03:19]} Ke7 {[%emt 0:00:01]} 50. Rxg6 {[%emt 0:00:23]} fxg4 {[%emt 0:00:18]} 51. hxg4 {[%emt 0:01:32]} Bxf4 {[%emt 0:00:12]} 52. Rg7+ {[%emt 0:00:34]} Ke6 {[%emt 0:00:20]} 53. Rxa7 {[%emt 0:00:28]} Rd8 {[%emt 0:00:30] [#]} (53... h5 $16 {might work better.}) 54. a4 $1 $18 {[%emt 0:01:53]} Kd5 {[%emt 0:00:22]} 55. Rf7 {[%emt 0:00:36] Prevents Rf8.} Bg5 {[%emt 0:01:25]} 56. Rf5+ {[%emt 0:00:46]} (56. a5 $18) 56... Kc6 $16 {[%emt 0:03:14]} 57. Bf6 {[%emt 0:00:23]} (57. Be1 $16) 57... Rd2+ $14 {[%emt 0:00:20]} 58. Kc3 {[%emt 0:00:21]} Be3 {[%emt 0:00:19]} 59. Rf3 {[%emt 0:11:06]} Rd6 $1 {[%emt 0:00:56]} 60. Be5 {[%emt 0:02:10]} (60. Rxe3 $16 Rxf6 61. Re8) 60... Bd4+ $1 $11 {[%emt 0:00:37]} 61. Bxd4 {[%emt 0:00:06]} Rxd4 {[%emt 0:00:12] KR-KR} 62. Rf6+ {[%emt 0:00:03]} Kb7 {[%emt 0:01:36]} 63. Rg6 {[%emt 0:00:59]} (63. Rxh6 $6 Rxg4 64. Rd6 Rh4 $16) 63... Rf4 {[%emt 0:00:39]} 64. Kb2 {[%emt 0:05:36]} ({But not} 64. Rxh6 $6 Rxg4 65. Rh3 Kb6 66. Rh6+ Kb7 $16) 64... Re4 {[%emt 0:00:21]} 65. Kc2 {[%emt 0:00:14]} ({Much less strong is} 65. Rxh6 $6 Rxg4 66. Rf6 Rg3 $16) 65... Rd4 {[%emt 0:00:10]} 66. Kc3 {[%emt 0:01:46]} Rf4 $1 {[%emt 0:00:13]} 67. Rxh6 {[%emt 0:03:57]} ({White should try} 67. Kd3 $14) 67... Rxg4 {[%emt 0:00:07] The position is equal.} 68. Re6 {[%emt 0:00:05]} Rf4 {[%emt 0:00:45]} 69. Kd3 {[%emt 0:00:47]} Rb4 {[%emt 0:00:14]} 70. Kc3 {[%emt 0:00:03]} Rf4 {[%emt 0:00:01]} 71. Re2 {[%emt 0:00:14]} Kc6 {[%emt 0:00:18]} 72. Rc2 {[%emt 0:00:04]} Rg4 {[%emt 0:00:31]} 73. Kb2 {[%emt 0:00:50]} Rf4 {[%emt 0:00:19]} 74. Rc3 {[%emt 0:00:16]} Rg4 {[%emt 0:00:13]} 75. Kc2 {[%emt 0:00:04]} Rg2+ {[%emt 0:00:54]} 76. Kd3 {[%emt 0:00:48]} Rg3+ {[%emt 0:00:05]} 77. Kd2 {[%emt 0:00:03]} Rg2+ {[%emt 0:00:04]} 78. Kd1 {[%emt 0:00:28]} Rg4 {[%emt 0:00:39]} 79. Ke2 {[%emt 0:00:07]} Rh4 {[%emt 0:01:06]} 80. Kd3 {[%emt 0:01:14]} Rh3+ {[%emt 0:00:04]} 81. Kc2 {[%emt 0:00:02]} Rh2+ {[%emt 0:00:07]} 82. Kb1 {[%emt 0:00:02]} Rh4 {[%emt 0:01:30]} 83. Kb2 {[%emt 0:00:23]} Rg4 {[%emt 0:00:36]} 84. Rh3 {[%emt 0:00:43]} Rf4 {[%emt 0:00:19]} 85. Rh6+ {[%emt 0:00:05]} Kb7 {[%emt 0:00:39]} 86. Rh7+ {[%emt 0:01:09]} Kb6 {[%emt 0:00:21]} 87. Re7 {[%emt 0:00:10]} Rg4 {[%emt 0:00:20]} 88. Kc3 {[%emt 0:00:11]} Rh4 {[%emt 0:00:25]} 89. Re8 {[%emt 0:00:26]} Kb7 {[%emt 0:00:34]} 90. Rg8 {[%emt 0:01:27]} Rf4 {[%emt 0:00:17]} 91. Rg3 {[%emt 0:01:49]} Rh4 {[%emt 0:00:35]} 92. Re3 {[%emt 0:00:21]} Rf4 {[%emt 0:00:32]} 93. Kd2 {[%emt 0:00:33]} Rh4 {[%emt 0:00:13]} 94. Kd3 {[%emt 0:02:36]} Rd4+ {[%emt 0:00:13]} 95. Kc2 {[%emt 0:00:48]} Rh4 {[%emt 0:00:15]} 96. Rg3 {[%emt 0:00:24]} Rf4 {[%emt 0:00:12]} 97. Kd2 {[%emt 0:00:05]} Rd4+ {[%emt 0:00:21]} 98. Kc3 {[%emt 0:00:48]} Rh4 {[%emt 0:00:14]} 99. Rg1 {[%emt 0:00:17]} Rf4 {[%emt 0:00:34]} 100. Kd3 {[%emt 0:00:06]} Rb4 {[%emt 0:00:12]} 101. Kc3 {[%emt 0:00:24]} Rf4 {[%emt 0:00:09]} 102. Rc1 {[%emt 0:00:03]} Rh4 {[%emt 0:00:19]} 103. Kd3 {[%emt 0:00:06]} Rb4 {[%emt 0:00:36]} 104. Rc3 {[%emt 0:00:23]} Kb6 {[%emt 0:00:36]} 105. Kc2 {[%emt 0:00:32]} Rh4 {[%emt 0:00:08]} 106. Kd2 {[%emt 0:00:20]} Rg4 {[%emt 0:00:28]} 107. Kd3 {[%emt 0:00:12]} Rb4 {[%emt 0:00:15]} 108. Kc2 {[%emt 0:00:10]} Rh4 {[%emt 0:00:06]} 109. Rg3 {[%emt 0:00:04]} Rf4 {[%emt 0:00:11]} 110. Re3 {[%emt 0:00:03]} Rh4 {[%emt 0:00:10]} 111. Kd3 {[%emt 0:00:05]} Rd4+ {[%emt 0:00:05]} 112. Kc3 {[%emt 0:00:04]} Rh4 {[%emt 0:00:10]} 113. Re6+ {[%emt 0:00:17]} Kb7 {[%emt 0:00:26]} 114. Rf6 {[%emt 0:00:10]} Rg4 {[%emt 0:00:06]} 115. Kb2 {[%emt 0:00:41]} Rh4 {[%emt 0:00:17]} 116. Ka3 {[%emt 0:00:09]} c4 {[%emt 0:05:49]} 117. b4 {[%emt 0:01:21]} Rh3+ {[%emt 0:00:03]} 118. Ka2 {[%emt 0:00:04]} Rb3 {[%emt 0:00:15]} 119. b5 {[%emt 0:01:02]} Rb4 {[%emt 0:00:05]} 120. Ra6 {[%emt 0:00:40]} c3 {[%emt 0:00:08]} 121. Rc6 {[%emt 0:00:37] Ka3 is the strong threat.} Rxa4+ {[%emt 0:00:21]} 122. Kb3 {[%emt 0:00:05]} Rh4 {[%emt 0:00:05]} 123. Kxc3 {[%emt 0:00:06]} Rg4 {[%emt 0:00:11] Weighted Error Value: White=0.08 (flawless) /Black=0.07 (flawless)} 1/2-1/2

[Event "13th Asrian Memorial 2022"]
[Site "Yerevan"]
[Date "2022.06.12"]
[Round "6.1"]
[White "Sargsyan, Shant"]
[Black "Ter-Sahakyan, Samvel"]
[Result "1/2-1/2"]
[ECO "E05"]
[WhiteElo "2641"]
[BlackElo "2640"]
[Annotator "TA"]
[PlyCount "31"]
[EventDate "2022.06.07"]
[EventType "swiss"]
[EventCountry "ARM"]
[SourceTitle "playchess.com"]
[Source "ChessBase"]
[SourceQuality "1"]
[TimeControl "40/5400+30:1800+30"]

{[%evp 20,31,11,5,15,10,22,26,11,0,14,6,8,0]} 1. d4 {[%emt 0:03:27]} Nf6 {[%emt 0:00:13]} 2. c4 {[%emt 0:01:17]} e6 {[%emt 0:00:05]} 3. Nf3 {[%emt 0:00:07]} d5 {[%emt 0:00:06]} 4. g3 {[%emt 0:00:09]} Be7 {[%emt 0:01:55]} 5. Bg2 {[%emt 0:00:16]} O-O {[%emt 0:00:06]} 6. O-O {[%emt 0:00:09]} dxc4 {[%emt 0:00:20]} 7. Qc2 {[%emt 0:00:07]} a6 {[%emt 0:00:36]} 8. a4 {[%emt 0:00:05]} Bd7 {[%emt 0:00:45]} 9. Qxc4 {[%emt 0:00:12]} Bc6 {[%emt 0:00:10]} 10. Bg5 {[%emt 0:00:21]} Nbd7 {[%emt 0:03:33]} 11. Nc3 {[%emt 0:00:28]} a5 {[%emt 0:02:46] E05: Open Catalan: 5 Nf3 Be7.} 12. Rfe1 {[%emt 0:00:29]} h6 {[%emt 0:07:44] [#] Strongly threatening ...Nb6.} 13. Bxf6 {[%emt 0:00:16]} Bxf6 {[%emt 0:01:29] [#]} 14. Qd3 $146 {[%emt 0:15:44] The position is equal.} ({Predecessor:} 14. e4 Nb6 15. Qd3 Be7 16. Ne5 Be8 17. Ng4 Bb4 18. e5 Nxa4 19. Ne4 Nc5 20. Nxc5 Bxc5 {½-½ (39) Valeinis,J (2484)-Pauwels,C (2555) ICCF email 2011}) 14... Nb6 {[%emt 0:14:47]} 15. Red1 {[%emt 0:02:47]} Qe7 {[%emt 0:06:45]} 16. e3 {[%emt 0:06:57] Not much happened in this game.  Weighted Error Value: White=0.06 (flawless) /Black=0.09 (flawless)} 1/2-1/2

[Event "13th Asrian Memorial 2022"]
[Site "Yerevan"]
[Date "2022.06.12"]
[Round "6.2"]
[White "Petrosyan, Manuel"]
[Black "Hayrapetyan, Hovik"]
[Result "1-0"]
[ECO "D38"]
[WhiteElo "2638"]
[BlackElo "2484"]
[Annotator "TA"]
[PlyCount "80"]
[EventDate "2022.06.07"]
[EventType "swiss"]
[EventCountry "ARM"]
[SourceTitle "playchess.com"]
[Source "ChessBase"]
[SourceQuality "1"]
[TimeControl "40/5400+30:1800+30"]

{[%evp 12,80,14,14,7,10,22,11,16,14,20,0,13,21,14,2,20,22,25,0,33,31,28,21,33,7,16,0,0,0,39,45,41,30,24,24,23,34,58,27,20,21,433,429,429,417,480,450,440,211,192,65,70,77,92,84,230,227,424,418,419,418,416,401,408,394,397,384,455,464,515]} 1. d4 {[%emt 0:04:52]} Nf6 {[%emt 0:00:23]} 2. c4 {[%emt 0:00:08]} e6 {[%emt 0:00:05]} 3. Nc3 {[%emt 0:00:06]} Bb4 {[%emt 0:00:07]} 4. Nf3 {[%emt 0:00:07]} d5 {[%emt 0:00:28]} 5. cxd5 {[%emt 0:01:58]} exd5 {[%emt 0:00:16]} 6. Bg5 {[%emt 0:00:07]} h6 {[%emt 0:03:02]} 7. Bh4 {[%emt 0:00:16]} O-O {[%emt 0:02:23] 7...Bf5 is the modern continuation. D38: Queen's Gambit Declined: Ragozin Defence (4 Nf3 Bb4).} 8. e3 {[%emt 0:01:12]} Bf5 {[%emt 0:05:00]} 9. Qb3 {[%emt 0:00:49]} Bxc3+ {[%emt 0:04:35] The position is equal.} 10. bxc3 {[%emt 0:00:28]} Nbd7 {[%emt 0:08:11]} 11. Be2 {[%emt 0:01:26]} c5 $1 {[%emt 0:04:13]} 12. dxc5 {[%emt 0:01:36]} Nxc5 {[%emt 0:08:06]} 13. Qb4 {[%emt 0:00:46]} Rc8 {[%emt 0:11:29]} 14. O-O {[%emt 0:00:29]} g5 {[%emt 0:02:13] And now ...a5 would win.} 15. Bg3 $1 {[%emt 0:00:07]} Nfe4 {[%emt 0:03:21]} 16. Be5 {[%emt 0:03:43] [#]} Qe7 $146 {[%emt 0:00:09]} ({Predecessor:} 16... Re8 17. Bd4 a5 18. Qa3 Ne6 19. Rac1 Nxd4 20. Nxd4 Bg6 21. Qb2 Re7 22. Bf3 Nc5 {½-½ (39) Sargissian,G (2681)-Gukesh,D (2614) Warsaw 2021}) 17. Bd4 {[%emt 0:00:32]} Rfe8 {[%emt 0:00:08]} 18. Rac1 {[%emt 0:11:01]} Ne6 {[%emt 0:06:48]} 19. Qa5 {[%emt 0:09:24]} Nxd4 {[%emt 0:06:32]} 20. Nxd4 {[%emt 0:02:56]} Be6 {[%emt 0:00:56]} 21. Qxa7 {[%emt 0:05:33]} Nxc3 {[%emt 0:12:07]} 22. Bd3 {[%emt 0:12:39]} Ra8 {[%emt 0:06:58]} 23. Qb6 {[%emt 0:02:37]} Rec8 {[%emt 0:00:55]} 24. Rc2 {[%emt 0:10:50]} Nxa2 {[%emt 0:01:46]} 25. Rxc8+ {[%emt 0:05:29]} Rxc8 {[%emt 0:00:14]} 26. Bf5 {[%emt 0:00:36][%cal Rf5e6]} Re8 $2 {[%emt 0:02:39][%mdl 8192]} (26... Bxf5 $2 27. Nxf5 Qe5 28. Nxh6+ Kg7 29. Qxb7 $18) (26... Nc3 $1 $11 {and Black stays safe.}) 27. Bxe6 $18 {[%emt 0:07:02]} fxe6 {[%emt 0:00:08]} 28. Qb1 {[%emt 0:00:07] aiming for Qg6+.} Nc3 {[%emt 0:09:15]} 29. Qg6+ {[%emt 0:00:06]} Kh8 {[%emt 0:00:01]} 30. Rc1 {[%emt 0:05:33]} (30. f4 $142 {Black must now prevent fxg5.} Ne4 31. fxg5 (31. Qxh6+ Qh7 $16)) 30... Ne4 {[%emt 0:01:12]} 31. f3 {[%emt 0:01:14]} ({Don't play} 31. Qxh6+ $6 Qh7 32. Qxh7+ Kxh7 $14) (31. h4 $18) 31... Nd6 $1 $14 {[%emt 0:00:59]} 32. Qxh6+ {[%emt 0:01:52]} Kg8 {[%emt 0:00:28]} 33. Rb1 $36 {[%emt 0:06:05][%mdl 2048] Hoping for Rb6. White is in control. White is more active.} e5 {[%emt 0:00:58] [#]} (33... Qg7 $16 34. Qh5 Re7) 34. Qg6+ $1 $18 {[%emt 0:01:20]} Kf8 $2 {[%emt 0:00:40] [#]} (34... Kh8 {was called for.}) 35. Nf5 $1 {[%emt 0:00:40]} Nxf5 {[%emt 0:00:06]} 36. Qxf5+ {[%emt 0:00:13]} Qf7 {[%emt 0:00:54]} 37. Qxg5 {[%emt 0:00:05]} Re7 {[%emt 0:00:30]} 38. Rb6 {[%emt 0:02:20] Strongly threatening Rf6.} Re6 {[%emt 0:00:22] Inhibits Rf6.} 39. Qd8+ {[%emt 0:00:51]} Kg7 {[%emt 0:00:11]} 40. Rb5 {[%emt 0:00:45]} e4 {[%emt 0:00:48] Weighted Error Value: White=0.14 (very precise) /Black=0.32} 1-0

[Event "13th Asrian Memorial 2022"]
[Site "Yerevan"]
[Date "2022.06.12"]
[Round "6.3"]
[White "Babujian Levon"]
[Black "Tabatabaei, M. Amin"]
[Result "1-0"]
[ECO "D31"]
[WhiteElo "2430"]
[BlackElo "2650"]
[Annotator "TA"]
[PlyCount "69"]
[EventDate "2022.06.07"]
[EventType "swiss"]
[EventCountry "ARM"]
[SourceTitle "playchess.com"]
[Source "ChessBase"]
[SourceQuality "1"]
[TimeControl "40/5400+30:1800+30"]

{[%evp 16,69,0,0,51,59,48,55,66,0,0,0,0,0,116,-59,109,110,114,114,115,112,122,118,120,116,160,0,0,0,0,0,0,0,168,152,210,210,216,210,187,256,221,258,260,255,225,220,587,584,565,521,978,963,699,660]} 1. d4 {[%emt 0:30:22] Morgado,Juan Sebastian} d5 {[%emt 0:04:11]} 2. c4 {[%emt 0:00:07]} e6 {[%emt 0:00:04]} 3. Nc3 {[%emt 0:00:05]} c6 {[%emt 0:00:04]} 4. e4 {[%emt 0:00:49]} dxe4 {[%emt 0:00:07]} 5. Nxe4 {[%emt 0:00:03]} Bb4+ {[%emt 0:00:06]} 6. Bd2 {[%emt 0:00:04]} Qxd4 {[%emt 0:00:06]} 7. Bxb4 {[%emt 0:00:05]} Qxe4+ {[%emt 0:00:05]} 8. Be2 {[%emt 0:00:03]} Na6 {[%emt 0:02:32]} 9. Bd6 {[%emt 0:00:15]} b6 {[%emt 0:08:49] D31: Queen's Gambit Declined: Semi-Slav without ...Nf6 (+ Marshall Gambit and Noteboom) and Exchange Variation lines without ...Nf6.} (9... Qxg2 $11 10. Bf3 Qg6) 10. Nf3 $14 {[%emt 0:15:49][%mdl 1024] Strongly threatening Ne5. White has compensation.} Bb7 $1 {[%emt 0:03:10]} 11. O-O {[%emt 0:00:38] And now Ne5 would win.} Rd8 {[%emt 0:38:40] White is slightly better.} 12. Ne5 {[%emt 0:10:34]} (12. Qd2 $14) 12... Ne7 $11 {[%emt 0:00:08]} 13. Re1 $40 {[%emt 0:05:13][%mdl 128] White mounts an attack.} Qh4 {[%emt 0:01:57] [#]} 14. Bh5 $146 {[%emt 0:19:42] A strong pair of Bishops.} ({Predecessor:} 14. g3 Qf6 15. Ng4 Qf5 16. Qd4 O-O 17. Bd3 Qh5 18. Qf4 c5 19. Be4 Rxd6 20. Qxd6 Bxe4 21. Rxe4 {1-0 (59) Morgado,J (2540)-Jezek,J (2510) Argentina 1995 Telechess CBM 125 [Morgado,Juan Sebastian]}) 14... g6 {[%emt 0:07:37] [#]} (14... O-O $11 {remains equal.}) 15. Bg4 $2 {[%emt 0:04:54]} (15. Qf3 $1 $16 {[%csl Ge5][%cal Rf3f7]} Rf8 (15... O-O 16. g3) 16. Rad1 (16. Bxe7 Qxe7 17. Bg4 f5 $11) 16... gxh5 17. Ba3 Rxd1 18. Rxd1) 15... O-O {[%emt 0:01:57]} (15... f5 $1 $15 16. Qd4 Rf8) 16. g3 $16 {[%emt 0:04:04]} Qf6 {[%emt 0:00:07]} 17. Qf3 $1 {[%emt 0:01:04] 0x0.002ac501ed14dp-1022s more active pieces. The black rooks are badly placed.} Qxf3 {[%emt 0:13:50]} 18. Bxe7 {[%emt 0:00:15]} Rde8 {[%emt 0:01:35][%cal Of3g4] Threatens to win with ...Qxg4!} 19. Bg5 {[%emt 0:01:33] Dancing on a razor blade.} (19. Nxf3 Rxe7 20. Rad1 c5 $17) 19... Qxg4 {[%emt 0:04:51]} 20. Nxg4 {[%emt 0:00:23]} Ra8 {[%emt 0:00:01]} 21. Be7 $2 {[%emt 0:04:15]} (21. Rad1 $16) 21... Rfc8 $11 {[%emt 0:00:26]} 22. Rad1 {[%emt 0:00:10] Black must now prevent Rd7.} c5 $1 {[%emt 0:01:02]} 23. Bf6 {[%emt 0:02:32] aiming for Rd7.} Bc6 {[%emt 0:00:12] Prevents Rd7.} 24. Rd6 {[%emt 0:03:39]} h5 $2 {[%emt 0:04:41]} (24... Be8 $11 {and Black stays safe.}) 25. Ne5 $18 {[%emt 0:00:50][%cal Bg4e5,Be5f3,Bf3g5,Bg5e6,Be6f4,Bf4d5][%mdl 32]} Be8 (25... Nb4 $16 {might work better.}) 26. g4 $1 {[%emt 0:00:18][%cal Bg3g4,Bg4h5][%mdl 32]} Nb4 {[%emt 0:02:53]} 27. gxh5 {[%emt 0:01:00] Hoping for Re3.} Nc6 {[%emt 0:00:03]} 28. h6 {[%emt 0:03:14][%cal Oh6h7] Intending h7+! and mate.} Kh7 {[%emt 0:01:09]} 29. Nf3 {[%emt 0:01:45] White threatens Ng5+ and mate.} Nd4 {[%emt 0:02:13]} 30. Ng5+ {[%emt 0:00:14]} ({Weaker is} 30. Nxd4 cxd4 31. Rxd4 b5 $11) 30... Kxh6 {[%emt 0:00:04] [#]} 31. Re4 $1 {[%emt 0:14:44][%cal Re4h4]} ({Not} 31. Re3 Kh5 $16) 31... Kh5 {[%emt 0:00:01] [#] Inhibits Rh4+.} (31... Nf5 {is more resistant.} 32. Rd3 Ng7) 32. Nxe6 $1 {[%emt 0:04:52][%csl Gf6][%cal Re4h4][%mdl 512] White is clearly winning.} Nf3+ {[%emt 0:00:10]} 33. Kg2 {[%emt 0:00:10]} Bc6 {[%emt 0:00:05] Inhibits Rd5+.} 34. Nf4+ {[%emt 0:00:53]} Kh6 {[%emt 0:00:44]} 35. Nd5 {[%emt 0:00:13] Weighted Error Value: White=0.16 (very precise) /Black=0.47} 1-0